Cogmind - Beta 11 X5 @@@ ROGUE MODE // 2021.07.06 @ 20:45:19 Player: AlmondRoll Result: Destroyed by 8R-AWN with 8R-AWN's Boregun Performance ------------- Evolutions (0) 0 Regions Visited (3) 600 Robots Destroyed (32) 160 Value Destroyed (494) 494 Prototype IDs (4) 80 Alien Tech Used (0) 0 Bonus (-277) -277 TOTAL SCORE: 1057 Bonus ------- Follower Combat Kills 60 Friendly Fire -337 Cogmind --------- Core Integrity 0/250 Matter 273/300 Energy 46/160 System Corruption 0% Temperature Cool (78) Movement Treading (160) Location -10/Exiles Parts ------- > --- POWER (1) -------- Light Nuclear Core > --- PROPULSION (2) --- Light Treads Light Treads > --- UTILITY (2) ------ Improved Heat Sink Hardened Light Armor Plating > --- WEAPON (2) ------- Heavy EM Pulse Gun Beam Cannon > --- INVENTORY (5) ---- Compact Wheel Hacking Suite Light Assault Rifle Rocket Launcher Peak State ------------ > --- POWER ------------ Light Nuclear Core > --- PROPULSION ------- Light Treads Light Treads > --- UTILITY ---------- Improved Heat Sink Hardened Light Armor Plating > --- WEAPON ----------- Heavy EM Pulse Gun Beam Cannon > --- INVENTORY -------- Compact Wheel Hardened Light Armor Plating Hacking Suite Light Assault Rifle Rocket Launcher [Rating: 13] Favorites ----------- Power Light Ion Engine Engine Light Ion Engine Power Core Light Nuclear Core Propulsion Light Treads Treads Light Treads Leg Aluminum Leg Wheel Wheel Utility Large Storage Unit Device Improved Heat Sink Storage Large Storage Unit Protection Hardened Light Armor Plating Weapon Assault Rifle Energy Gun EM Pulse Gun Energy Cannon Beam Cannon Ballistic Gun Assault Rifle Launcher Rocket Launcher Slashing Weapon Mining Claw Build | -11 -10 -10 -10 ------- Run | Scr Mat Min Exi Slots Evolved . | . . . . Power . | . . . . Propulsion . | . . . . Utility . | . . . . Weapon . | . . . . Parts Attached 23 | 2 10 3 8 Power 4 | . 2 1 1 Engine 3 | . 2 1 . Core 1 | . . . 1 Reactor . | . . . . Propulsion 6 | 2 4 . . Treads 2 | . 2 . . Leg . | . . . . Wheel 4 | 2 2 . . Hover . | . . . . Flight . | . . . . Utility 4 | . 2 . 2 Device 1 | . . . 1 Storage 1 | . 1 . . Processor . | . . . . Hackware . | . . . . Protection 2 | . 1 . 1 Artifact . | . . . . Weapon 9 | . 2 2 5 Energy Gun 4 | . 1 1 2 Energy Cannon 1 | . . . 1 Ballistic Gun 2 | . . 1 1 Ballistic Cannon . | . . . . Launcher 1 | . . . 1 Special Weapon . | . . . . Impact Weapon . | . . . . Slashing Weapon 1 | . 1 . . Piercing Weapon . | . . . . Special Melee Weapon . | . . . . Unidentified Prototypes . | . . . . Parts Lost 5 | . . 2 3 Power 1 | . . . 1 Propulsion . | . . . . Utility 1 | . . . 1 Weapon 3 | . . 2 1 Highest Loss Streak 3 | . . 2 3 Average Slot Usage (%) 99 | . 98 100 100 Engine 13 | . 14 14 11 Treads 24 | . 20 28 28 Wheel 3 | . 7 . . Storage 13 | . 14 14 11 Protection 13 | . 12 14 14 Energy Gun 13 | . 12 14 17 Ballistic Gun 13 | . 14 14 6 Naked Turns . | . . . . Heaviest Build 34 | 14 34 31 33 Greatest Support 40 | 20 40 40 40 Greatest Overweight (x) 1 | . 1 . . Average Overweight (x) . | . . . . Largest Inventory Capacity 15 | 8 15 15 15 Average Capacity 14 | 8 14 15 13 Most Carried 15 | 8 15 15 15 Average Carried 13 | 5 13 14 13 Final Capacity 15 | 8 15 15 5 Final Carried 15 | 8 15 15 4 Class Distribution -------------------- 100% | Mutant Dominant Class ---------------- Mutant | -10/Materials Mutant | -10/Mines Mutant | -10/Exiles Resources | -11 -10 -10 -10 ----------- Run | Scr Mat Min Exi Matter Collected 556 | 244 208 44 60 Remotely . | . . . . Salvage Created 1191 | 143 609 432 7 Parts 76 | 11 40 25 . Haulers Intercepted 1 | . 1 . . Recyclers Shooed 3 | 1 1 1 . Parts Field Recycled . | . . . . Retrieved Matter . | . . . . Parts Self-Destructed . | . . . . Prevented . | . . . . Kills | -11 -10 -10 -10 ------- Run | Scr Mat Min Exi Combat Hostiles Destroyed 16 | . 11 2 3 Guns 13 | . 11 2 . AOE 3 | . . . 3 Classes Destroyed 10 | 2 6 1 1 Worker 3 | . 2 1 . Builder 2 | . . 2 . Tunneler 3 | 2 . 1 . Hauler 1 | . 1 . . Recycler 5 | 1 1 3 . Operator 2 | . 2 . . Watcher 3 | . 3 . . Swarmer 5 | . 5 . . Grunt 8 | . 6 2 . Assembled 4 | . . . 4 Best Kill Streak 10 | 2 10 3 3 Combat Bots Only 3 | . 3 2 3 Max Kills in Single Turn 3 | 1 2 1 3 Gunslinging 1 | . 1 . . Exploded 3 | . . . 3 Melee . | . . . . Uniques/NPCs Destroyed . | . . . . Combat | -11 -10 -10 -10 -------- Run | Scr Mat Min Exi Damage Taken 1190 | . 484 168 538 Core 266 | . 100 34 132 Absorbed by Shields . | . . . . Core Remaining (%) 100 | 100 . . . Volleys Fired 79 | 8 36 20 15 Largest 2 | 2 2 2 2 Hottest 105 | 70 70 70 105 Shots Fired 153 | 15 70 40 28 Gun 145 | 15 70 40 20 Cannon 6 | . . . 6 Launcher 2 | . . . 2 Special . | . . . . Kinetic 64 | 8 36 20 . Thermal 48 | 7 34 1 6 Explosive 2 | . . . 2 Electromagnetic 39 | . . 19 20 Robot Hit Streak 15 | 8 15 10 5 Robot Miss Streak 4 | 2 3 2 4 Penetration Max . | . . . . Secondary Targets 1 | . 1 . . Max Gunslinging Chain 1 | . 1 . . Shots Hit Robots 100 | 12 49 24 15 Core Hits 61 | 4 29 16 12 Critical Kills . | . . . . Critical Parts Destroyed . | . . . . Critical Strikes 3 | . 2 . 1 Burn 2 | . 2 . . Corrupt 1 | . . . 1 Melee Attacks 2 | . 2 . . Impact . | . . . . Slashing 2 | . 2 . . Piercing . | . . . . Sneak Attacks . | . . . . Combat Hostiles . | . . . . Follow-up Attacks . | . . . . Damage Inflicted 1468 | 139 622 361 346 Guns 1076 | 139 622 303 12 Cannons 3 | . . . 3 Explosions 389 | . . 58 331 Melee . | . . . . Ramming . | . . . . Kinetic 460 | 66 312 82 . Thermal 457 | 73 310 71 3 Explosive 331 | . . . 331 Electromagnetic 220 | . . 208 12 Impact . | . . . . Slashing . | . . . . Piercing . | . . . . Highest Corruption . | . . . . Average Corruption . | . . . . Corruption Purged . | . . . . Overload Shots . | . . . . Overflow Damage 1 | . . . 1 Projectiles . | . . . . Explosions 1 | . . . 1 Melee . | . . . . Knockbacks . | . . . . Impact . | . . . . Kinetic . | . . . . Secondary . | . . . . Self-Inflicted Damage 33 | . . 33 . Shots 1 | . . 1 . Rammed . | . . . . Targets Rammed . | . . . . Kicked . | . . . . Crushed . | . . . . Highest Temperature 335 | 38 321 141 335 Average Temperature 96 | 20 122 38 139 Received Heat Transfer 302 | . 204 78 20 Effects 6 | . 3 . 3 Energy Bleed 3 | . 2 . 1 Interference 3 | . 1 . 2 Siege Activations . | . . . . Robots Corrupted . | . . . . Combat Hostiles . | . . . . Parts Fried . | . . . . Impact Corruptions . | . . . . Robots Melted . | . . . . Combat Hostiles . | . . . . Parts Melted 2 | . 2 . . Heat Transferred 1459 | 222 1073 137 27 Parts Sabotaged . | . . . . Parts Stolen . | . . . . Parts Stripped . | . . . . Power Chain Reactions 1 | . . 1 . Missiles Intercepted . | . . . . Alert | -11 -10 -10 -10 ------- Run | Scr Mat Min Exi Peak Influence 265 | 15 265 78 . Initial 18 | . 9 18 . Average 80 | 8 122 40 . Maximum Alert Level 1 | . 1 . . Low Security (%) 89 | 100 78 100 . Level 1 10 | . 21 . . Level 2 . | . . . . Level 3 . | . . . . Level 4 . | . . . . Level 5 . | . . . . High Security . | . . . . Max Security . | . . . . Squads Dispatched 2 | . 2 . . Investigation . | . . . . Extermination . | . . . . Reinforcement 2 | . 2 . . Assault . | . . . . Garrison . | . . . . Intercept . | . . . . Construction Impeded . | . . . . Haulers Reinforced . | . . . . Cargo Convoy Interrupts . | . . . . Stealth | -11 -10 -10 -10 --------- Run | Scr Mat Min Exi Distress Signals . | . . . . Communications Jammed . | . . . . Distress Signals . | . . . . Times Spotted 30 | . 19 4 7 Peak Tracking Total 8 | . 4 2 8 Tactical Retreats . | . . . . Traps | -11 -10 -10 -10 ------- Run | Scr Mat Min Exi Traps Triggered 1 | . 1 . . Indirectly . | . . . . Trap Hack Attempts . | . . . . Triggered . | . . . . Disarmed 4 | . 4 . . Reprogrammed . | . . . . Reused . | . . . . Traps Extracted . | . . . . Installed . | . . . . Triggered . | . . . . Machines | -11 -10 -10 -10 ---------- Run | Scr Mat Min Exi Machines Disabled 3 | . . . 3 Max in Single Turn 2 | . . . 2 Machines Sabotaged . | . . . . Garrisons Compromised . | . . . . Overloaded Fab Kills . | . . . . Fab Network Shutdowns . | . . . . Hacking | -11 -10 -10 -10 --------- Run | Scr Mat Min Exi Machines Accessed 8 | . 6 2 . Terminals 7 | . 6 1 . Fabricators . | . . . . Repair Stations . | . . . . Recycling Units . | . . . . Scanalyzers . | . . . . Garrison Access . | . . . . Total Hacks 24 | . 21 3 . Successful 17 | . 14 3 . Failed 7 | . 7 . . Catastrophic . | . . . . Database Lockouts . | . . . . Manual 5 | . 5 . . Terminals 23 | . 21 2 . Fabricators . | . . . . Repair Stations . | . . . . Recycling Units . | . . . . Scanalyzers . | . . . . Garrison Access . | . . . . Terminal Hacks 16 | . 13 3 . Prototype ID Bank 3 | . 3 . . Open Door 1 | . . 1 . Terminal Index 1 | . 1 . . Alert Level 1 | . 1 . . Disarm Traps 3 | . 3 . . Dispatch Records 2 | . 1 1 . Patrol Status 1 | . . 1 . Hauler Manifests 3 | . 3 . . Zone Layout 1 | . 1 . . Fabricator Hacks . | . . . . Repair Station Hacks . | . . . . Recycling Unit Hacks . | . . . . Scanalyzer . | . . . . Garrison Access Hacks . | . . . . Unauthorized Hacks 1 | . 1 . . Terminals 1 | . 1 . . Botnet 1 | . 1 . . Fabricators . | . . . . Repair Stations . | . . . . Recycling Units . | . . . . Scanalyzers . | . . . . Garrison Access . | . . . . Data Cores Recovered . | . . . . Used . | . . . . Hacking Detections 5 | . 4 1 . Full Trace Events . | . . . . Feedback Events . | . . . . Feedback Blocked . | . . . . Robot Schematics Acquired . | . . . . Robots Built . | . . . . Matter . | . . . . Time . | . . . . Total Robot Build Rating . | . . . . Part Schematics Acquired . | . . . . Parts Built . | . . . . Matter . | . . . . Time . | . . . . Total Part Build Rating . | . . . . Parts Repaired . | . . . . Time . | . . . . Parts Recycled . | . . . . Recycled Matter . | . . . . Retrieved Matter . | . . . . Retrieved Components . | . . . . Parts Scanalyzed . | . . . . Part Schematics Acquired . | . . . . Parts Damaged . | . . . . Bothacking | -11 -10 -10 -10 ------------ Run | Scr Mat Min Exi Used RIF Installer . | . . . . Robots Hacked . | . . . . Non-combat . | . . . . Combat . | . . . . Robot Hacks Applied . | . . . . Relay Couplers Released . | . . . . Robots Rewired . | . . . . Allies Hacked . | . . . . Hacks Repelled . | . . . . Allies | -11 -10 -10 -10 -------- Run | Scr Mat Min Exi Total Allies 3 | . . 3 . Largest Group 3 | . . 3 3 Highest-Rated Group 40 | . . 40 40 Highest-Rated Ally 16 | . . 16 16 Total Orders . | . . . . Ally Attacks 48 | . . 13 35 Total Damage 210 | . . 120 90 Kills 4 | . . 2 2 Allies Corrupted . | . . . . Allies Melted . | . . . . Intel | -11 -10 -10 -10 ------- Run | Scr Mat Min Exi Robot Analysis Total . | . . . . Derelict Logs Recovered 1 | . . 1 . Drone Launches . | . . . . Drone Recoveries . | . . . . Exploration | -11 -10 -10 -10 ------------- Run | Scr Mat Min Exi Turns Passed 1970 | 65 914 863 128 Spaces Moved 1116 | 42 544 484 46 Core . | . . . . Treads 906 | . 376 484 46 Legs . | . . . . Wheels 210 | 42 168 . . Hover . | . . . . Flight . | . . . . Fastest Speed 80 | 80 80 160 160 Average Speed 146 | 80 138 160 160 Slowest Speed 160 | 80 160 160 160 Overloaded Moves . | . . . . Propulsion Burnouts . | . . . . Robots Hopped . | . . . . Cave-ins Triggered . | . . . . Exploration Rate (%) 48 | 3 97 78 16 Regions Visited 3 Branch Regions 2 Pre-discovered Areas 2 | . . 2 . Known Exits Taken . | . . . . Unknown Exits Taken 3 | 1 1 1 . Scrap Searched 1 | . . 1 . Spaces Dug 1 | . 1 . . Terrain Destroyed 22 | . 1 5 16 Melee 1 | . 1 . . Projectile . | . . . . AOE 21 | . . 5 16 Terrain Rammed . | . . . . Walls Destroyed . | . . . . Machines Disabled . | . . . . Actions | -11 -10 -10 -10 --------- Run | Scr Mat Min Exi Total 1302 | 59 634 538 71 Wait 42 | . 16 24 2 Move 1113 | 41 543 483 46 Hop . | . . . . Pick Up 25 | 5 15 5 . Fast Attach 4 | . 3 . 1 Attach 6 | 2 . 2 2 Detach 1 | . 1 . . Swap 13 | . 7 1 5 Drop 17 | 3 11 3 . Fire 79 | 8 36 20 15 Melee 2 | . 2 . . Ram . | . . . . Kick . | . . . . Crush . | . . . . Escape Stasis . | . . . . Rewire . | . . . . Trap . | . . . . Miscellaneous . | . . . . Route ------- -11/Scrapyard -10/Materials (discovered 4 exits: [*Mat x3] / *Min) -10/Mines (discovered 2 exits: [*Mat] / [*Exi]) -10/Exiles History --------- Turn | Location | Event 10 | -11/Scrapyard | Discovered new exit (range 3) 66 | -11/Scrapyard | Entered Materials 194 | -10/Materials | Discovered new exit (range 12) 312 | -10/Materials | Build established: Mutant 419 | -10/Materials | Discovered new exit (range 16) 666 | -10/Materials | Discovered new exit (range 4) 822 | -10/Materials | Discovered new exit (range 11) 980 | -10/Materials | Entered Mines 1129 | -10/Mines | Discovered new exit (range 6) 1144 | -10/Mines | Assisted by bots powering up and referring to "LRC-V3" 1279 | -10/Mines | Received a Rocket Launcher from a helpful Derelict 1363 | -10/Mines | Learned location of Recycling (-7) 1414 | -10/Mines | Core integrity fell below 50% 1544 | -10/Mines | Found the Drone Emporium 1617 | -10/Mines | Found Prototype Device 1643 | -10/Mines | Learned location of Storage (-7) 1829 | -10/Mines | Deemed a non-threat by the Exiles lab entrance 1830 | -10/Mines | Discovered new exit (range 5) 1843 | -10/Mines | Entered Exiles 1843 | -10/Exiles | Accompanied by 3 allies 1887 | -10/Exiles | Met 8R-AWN 1912 | -10/Exiles | Attacked by the Exiles 1948 | -10/Exiles | Core integrity fell below 20% 1971 | -10/Exiles | Destroyed by 8R-AWN with 8R-AWN's Boregun Last Messages --------------- 01958_ Penetrated by HV Slug. 01958_ HV Slug penetrates Wall. 01958_ Acquired Lgt. Nuclear Core. 01959_ Wall collapses. 01960_ Acquired 60 matter. 01961_ 8R-AWN suffers critical hit (Burn). 01963_ Penetrated by HV Slug. 01963_ HV Slug penetrates Earth. 01963_ Penetrated by HV Slug. 01963_ HV Slug penetrates Earth. 01967_ Penetrated by HV Slug. 01967_ Critical hit (Destroy). 01967_ Hrd. Light Armor Plating destroyed. 01967_ HV Slug penetrates Earth. 01967_ Penetrated by HV Slug. 01967_ HV Slug penetrates Earth. 01971_ Penetrated by HV Slug. 01971_ Critical hit (Destroy). 01971_ HV Slug penetrates Earth. 01971_ Penetrated by HV Slug. Map ----- +----------------------------------------------------+ | ?????????????????????????????????????????????????? | | ?????????????????????????????????????????????????? | | ?????????????????????????????????????????????????? | | ?????????????????????????????????????????????????? | | ?????????????????????????????????????????????????? | | ?????????????????????????????????????????????????? | | ?????????????????????????????????????????????????? | | ?????????????????????????????????????????????????? | | ?????????????????????????????????????????????????? | | ?????????????????????????????????????????????????? | | ?????????????????????????????????????????????????? | | ?????????????????????????????????????????????????? | | ?????????????????????????????????????????????????? | | ?????????????????????????????????????????????????? | | ?????????????????????????????????????????????????? | | ???????????? "??????????????#####??????????????? | | ???????????? " "???????????##" #??????????????# | | ??????????? ""??????????#" #?????????????## | | ??????????? ""????????## ##????????????# | | ?????????? "?????### ###????????### | | ?????????? #????# g ########## | | ????????? #??## #""""## | | ????????? ### * | | ????????? g= ## * | | ????????? [!!%* #### | | ????????? ! @=!""#?#"""""#### | | ????????? % !;/ "##?#######??#### | | ????????? ;;[###??????????????##### | | ?????????? % ;; ##????????????????????## | | ??????????" ;; #??????????????????????? | | ??????????? #####??????????????????????? | | ??????????? ;???????????????????????????? | | ??????????? " ;????????????????????????????? | | ???????????? #;;#????????????????????????????? | | ???????????? # #?????????????????????????????? | | ?????????????# ####??????????????????????????????? | | ?????????????#???????????????????????????????????? | | ?????????????????????????????????????????????????? | | ?????????????????????????????????????????????????? | | ?????????????????????????????????????????????????? | | ?????????????????????????????????????????????????? | | ?????????????????????????????????????????????????? | | ?????????????????????????????????????????????????? | | ?????????????????????????????????????????????????? | | ?????????????????????????????????????????????????? | | ?????????????????????????????????????????????????? | | ?????????????????????????????????????????????????? | | ?????????????????????????????????????????????????? | | ?????????????????????????????????????????????????? | | ?????????????????????????????????????????????????? | +----------------------------------------------------+ Best States ------------- Heat Dissipation 39 Energy Generation 14 Energy Capacity 250 Matter Stores 300 Matter Capacity 300 Sight Range 16 Terrain Scan Density 10 Armor Coverage 150 Evasion (%) 44 Recoil Reduction 2 Item Schematics ----------------- None Robot Schematics ------------------ None Fabricated ------------ Nothing Alien Tech Used ----------------- None Achievements -------------- None Challenges ------------ None Game ------ Seed AlloySmartbombInverter Manual? 0 Play Time 00:21:36 Cumulative 211.1 hours Start 2021.07.06 @ 18:20:16 End 2021.07.06 @ 20:45:19 Sessions 1 Manual Loads 0 Difficulty Rogue Special Mode None Game No. 125 Rogue 125 Adventurer 0 Explorer 0 Win Type - Total 3 Types 2/0/0/1/0/0/0/0/0 Lore% 63 Gallery% 73 Achievement% 48 Wizard Run 0 Options --------- ASCII 0 Keyboard 0 Movement Numpad Keybinds 0 Fullscreen 1 Font 18/SmallcapsGlow Map View 76x50 Tactical HUD 1 Map Filters NONE Filters NONE Steam 1 RUN: 607fa0ea-6850-4e0c-b121-a8082a27bf08